[Event "*** Titled Tuesday Blitz"]
[Site "Chess.com"]
[Date "2020.01.07"]
[Round "8"]
[White "M1711"]
[Black "goldenspine"]
[Result "0-1"]
[WhiteElo "2520"]
[BlackElo "2362"]
[TimeControl "180+2"]
[EndTime "14:53:16 PST"]
[Termination "goldenspine won by checkmate"]

1. d4 {[%clk 0:02:58.3]} 1... Nf6 {[%clk 0:03:00.9]} 2. Bg5 {[%clk 0:02:54]}
2... e6 {[%clk 0:02:55.5]} 3. e4 {[%clk 0:02:55.2]} 3... h6 {[%clk 0:02:56.1]}
4. Bxf6 {[%clk 0:02:56.8]} 4... Qxf6 {[%clk 0:02:56.9]} 5. c3 {[%clk 0:02:58.5]}
5... g6 {[%clk 0:02:56.1]} 6. Bd3 {[%clk 0:02:59.9]} 6... Bg7 {[%clk 0:02:56.9]}
7. Ne2 {[%clk 0:02:52.1]} 7... d6 {[%clk 0:02:57.4]} 8. O-O {[%clk 0:02:51.2]}
8... O-O {[%clk 0:02:47.1]} 9. f4 {[%clk 0:02:52.2]} 9... Qe7 {[%clk 0:02:45.4]}
10. e5 {[%clk 0:02:49.6]} 10... c5 {[%clk 0:02:43.8]} 11. Nd2 {[%clk 0:02:48.6]}
11... Nc6 {[%clk 0:02:44.5]} 12. exd6 {[%clk 0:02:48.9]} 12... Qxd6 {[%clk
0:02:45.3]} 13. Ne4 {[%clk 0:02:49.2]} 13... Qd8 {[%clk 0:02:35.6]} 14. Nxc5
{[%clk 0:02:49.6]} 14... Nxd4 {[%clk 0:02:35]} 15. Be4 {[%clk 0:02:32.3]} 15...
Nxe2+ {[%clk 0:02:18.6]} 16. Qxe2 {[%clk 0:02:34.2]} 16... Qb6 {[%clk
0:02:16.3]} 17. Qf2 {[%clk 0:02:34.8]} 17... Rd8 {[%clk 0:02:09.5]} 18. Rfd1
{[%clk 0:02:32]} 18... Bf8 {[%clk 0:01:55.2]} 19. Rxd8 {[%clk 0:02:29.2]} 19...
Qxd8 {[%clk 0:01:57.1]} 20. Nxb7 {[%clk 0:02:17.2]} 20... Qc7 {[%clk 0:01:44.9]}
21. Qf3 {[%clk 0:02:17.2]} 21... Rb8 {[%clk 0:01:42.3]} 22. Rd1 {[%clk
0:01:26.7]} 22... Bxb7 {[%clk 0:01:42]} 23. Rd2 {[%clk 0:01:26.3]} 23... Bxe4
{[%clk 0:01:30.2]} 24. Qxe4 {[%clk 0:01:28.2]} 24... Qb7 {[%clk 0:01:29.7]} 25.
Qe5 {[%clk 0:01:12.2]} 25... Qb6+ {[%clk 0:01:27.5]} 26. Kh1 {[%clk 0:01:12.6]}
26... Rd8 {[%clk 0:01:26.9]} 27. Rxd8 {[%clk 0:01:09.2]} 27... Qxd8 {[%clk
0:01:28.8]} 28. h3 {[%clk 0:01:09.1]} 28... Qd1+ {[%clk 0:01:27.7]} 29. Kh2
{[%clk 0:01:09.4]} 29... Qd2 {[%clk 0:01:28.9]} 30. Qb8 {[%clk 0:01:04]} 30...
Kg7 {[%clk 0:01:28.8]} 31. Qe5+ {[%clk 0:01:04.7]} 31... Kh7 {[%clk 0:01:27.9]}
32. Qc7 {[%clk 0:01:04]} 32... Kg8 {[%clk 0:01:25.7]} 33. Qb8 {[%clk 0:01:03.7]}
33... Qd6 {[%clk 0:01:23.5]} 34. Qxa7 {[%clk 0:01:02.5]} 34... Qxf4+ {[%clk
0:01:24.4]} 35. Kg1 {[%clk 0:01:02.7]} 35... Qc1+ {[%clk 0:01:22.1]} 36. Kf2
{[%clk 0:01:00.1]} 36... Qxb2+ {[%clk 0:01:20.4]} 37. Kf1 {[%clk 0:01:01.6]}
37... Qxc3 {[%clk 0:01:19.5]} 38. Qa6 {[%clk 0:00:58.3]} 38... Bc5 {[%clk
0:01:18.5]} 39. h4 {[%clk 0:00:53.4]} 39... Qd4 {[%clk 0:01:13.3]} 40. Ke2
{[%clk 0:00:48.9]} 40... Qg1 {[%clk 0:01:12.4]} 41. Kf3 {[%clk 0:00:40.6]} 41...
Qf2+ {[%clk 0:01:12.4]} 42. Ke4 {[%clk 0:00:40.1]} 42... Qf5# {[%clk 0:01:11.9]}
0-1

[Event "*** Titled Tuesday Blitz"]
[Site "Chess.com"]
[Date "2020.01.07"]
[Round "8"]
[White "nubair1198"]
[Black "Hikaru"]
[Result "1-0"]
[WhiteElo "2926"]
[BlackElo "3110"]
[TimeControl "180+2"]
[EndTime "14:53:32 PST"]
[Termination "nubair1198 won by checkmate"]

1. d4 {[%clk 0:02:58.6]} 1... e6 {[%clk 0:03:01.1]} 2. c4 {[%clk 0:02:59.1]}
2... b6 {[%clk 0:03:01.9]} 3. e4 {[%clk 0:02:59.4]} 3... Bb7 {[%clk 0:03:02.9]}
4. Bd3 {[%clk 0:03:00.8]} 4... f5 {[%clk 0:03:00.1]} 5. exf5 {[%clk 0:02:43.9]}
5... Bxg2 {[%clk 0:02:59.3]} 6. Qh5+ {[%clk 0:02:39.8]} 6... g6 {[%clk
0:03:00.5]} 7. fxg6 {[%clk 0:02:40.9]} 7... Bg7 {[%clk 0:03:02.2]} 8. gxh7+
{[%clk 0:02:19.1]} 8... Kf8 {[%clk 0:03:03.3]} 9. Ne2 {[%clk 0:02:20.6]} 9...
Bxh1 {[%clk 0:02:50.8]} 10. Bg5 {[%clk 0:02:15.8]} 10... Nf6 {[%clk 0:02:35]}
11. Qh4 {[%clk 0:02:16.9]} 11... Nc6 {[%clk 0:02:28.7]} 12. Nd2 {[%clk 0:02:11]}
12... e5 {[%clk 0:01:30.5]} 13. O-O-O {[%clk 0:02:05]} 13... Qe7 {[%clk
0:01:31.7]} 14. Rxh1 {[%clk 0:01:59.6]} 14... Qf7 {[%clk 0:01:33]} 15. Rg1
{[%clk 0:01:45.8]} 15... e4 {[%clk 0:00:57.1]} 16. Bxe4 {[%clk 0:01:35.4]} 16...
Nxe4 {[%clk 0:00:55.5]} 17. Nxe4 {[%clk 0:01:36.2]} 17... Re8 {[%clk 0:00:44.7]}
18. N2c3 {[%clk 0:01:25.4]} 18... Nxd4 {[%clk 0:00:39.4]} 19. Bf6 {[%clk
0:01:25.9]} 19... Nf5 {[%clk 0:00:33.9]} 20. Qg4 {[%clk 0:01:08.4]} 20... Bxf6
{[%clk 0:00:23]} 21. Nxf6 {[%clk 0:01:09.6]} 21... Nh6 {[%clk 0:00:04.6]} 22.
Qf4 {[%clk 0:01:03.4]} 22... Re6 {[%clk 0:00:03.2]} 23. Qxh6+ {[%clk 0:00:52.6]}
23... Ke7 {[%clk 0:00:04.7]} 24. Ncd5+ {[%clk 0:00:54]} 24... Kd6 {[%clk
0:00:05.9]} 25. Qf4+ {[%clk 0:00:55.7]} 25... Kc5 {[%clk 0:00:07.8]} 26. Qxc7+
{[%clk 0:00:55.4]} 26... Rc6 {[%clk 0:00:08.3]} 27. Qe5 {[%clk 0:00:52.5]} 27...
Kxc4 {[%clk 0:00:08.9]} 28. Nc3 {[%clk 0:00:40.3]} 28... Rc5 {[%clk 0:00:07.7]}
29. Rg4+ {[%clk 0:00:39.6]} 29... Kd3 {[%clk 0:00:07.9]} 30. Qe2# {[%clk
0:00:40.1]} 1-0

[Event "*** Titled Tuesday Blitz"]
[Site "Chess.com"]
[Date "2020.01.07"]
[Round "8"]
[White "Induwara_IM"]
[Black "Saloni1299"]
[Result "1/2-1/2"]
[WhiteElo "2361"]
[BlackElo "2135"]
[TimeControl "180+2"]
[EndTime "14:53:32 PST"]
[Termination "Game drawn by repetition"]

1. d4 {[%clk 0:00:45.5]} 1... Nf6 {[%clk 0:02:59.1]} 2. c4 {[%clk 0:00:47.4]}
2... g6 {[%clk 0:02:59.4]} 3. Nc3 {[%clk 0:00:49.1]} 3... d5 {[%clk 0:02:58]} 4.
Nf3 {[%clk 0:00:48.7]} 4... Bg7 {[%clk 0:02:58.4]} 5. cxd5 {[%clk 0:00:49.1]}
5... Nxd5 {[%clk 0:02:58.8]} 6. e4 {[%clk 0:00:51]} 6... Nxc3 {[%clk 0:02:59.8]}
7. bxc3 {[%clk 0:00:52.9]} 7... c5 {[%clk 0:03:01]} 8. Be3 {[%clk 0:00:51.9]}
8... Nc6 {[%clk 0:03:02.1]} 9. Be2 {[%clk 0:00:52.4]} 9... Qa5 {[%clk
0:02:56.6]} 10. O-O {[%clk 0:00:52]} 10... O-O {[%clk 0:02:52.7]} 11. d5 {[%clk
0:00:52.6]} 11... Ne5 {[%clk 0:02:49.2]} 12. c4 {[%clk 0:00:53.1]} 12... Nxf3+
{[%clk 0:02:48.1]} 13. Bxf3 {[%clk 0:00:53.9]} 13... f5 {[%clk 0:02:48.1]} 14.
exf5 {[%clk 0:00:53.8]} 14... Bxf5 {[%clk 0:02:49]} 15. Qb3 {[%clk 0:00:47.3]}
15... Qc7 {[%clk 0:02:47.4]} 16. Rad1 {[%clk 0:00:46]} 16... Rad8 {[%clk
0:02:47.9]} 17. Rfe1 {[%clk 0:00:44.6]} 17... b6 {[%clk 0:02:40.8]} 18. a4
{[%clk 0:00:45.2]} 18... Be5 {[%clk 0:02:19.4]} 19. h4 {[%clk 0:00:38.5]} 19...
e6 {[%clk 0:02:04.2]} 20. Bg5 {[%clk 0:00:35.6]} 20... Rde8 {[%clk 0:01:59.6]}
21. a5 {[%clk 0:00:26.5]} 21... exd5 {[%clk 0:01:55.5]} 22. Bxd5+ {[%clk
0:00:25.7]} 22... Be6 {[%clk 0:01:54.6]} 23. axb6 {[%clk 0:00:24.3]} 23... axb6
{[%clk 0:01:54.7]} 24. g3 {[%clk 0:00:21.2]} 24... Bxd5 {[%clk 0:01:35.2]} 25.
cxd5 {[%clk 0:00:23.1]} 25... Bd6 {[%clk 0:01:30.9]} 26. Re6 {[%clk 0:00:23.7]}
26... c4 {[%clk 0:01:28.5]} 27. Qe3 {[%clk 0:00:21.3]} 27... Bc5 {[%clk
0:01:24]} 28. Qe4 {[%clk 0:00:21.3]} 28... Bxf2+ {[%clk 0:01:23.7]} 29. Kh1
{[%clk 0:00:21.5]} 29... Qxg3 {[%clk 0:01:00.1]} 30. Rxg6+ {[%clk 0:00:15]}
30... hxg6 {[%clk 0:00:49.6]} 31. Qxg6+ {[%clk 0:00:16.9]} 31... Kh8 {[%clk
0:00:50.7]} 32. Qh6+ {[%clk 0:00:17.6]} 32... Kg8 {[%clk 0:00:51.9]} 33. Qg6+
{[%clk 0:00:18.9]} 33... Kh8 {[%clk 0:00:53]} 34. Qh6+ {[%clk 0:00:12.4]} 34...
Kg8 {[%clk 0:00:54.1]} 35. Qg6+ {[%clk 0:00:13.8]} 1/2-1/2

[Event "*** Titled Tuesday Blitz"]
[Site "Chess.com"]
[Date "2020.01.07"]
[Round "8"]
[White "tigra"]
[Black "Mr_Sinigami"]
[Result "0-1"]
[WhiteElo "2738"]
[BlackElo "2597"]
[TimeControl "180+2"]
[EndTime "14:53:41 PST"]
[Termination "Mr_Sinigami won by resignation"]

1. d4 {[%clk 0:03:01.9]} 1... Nf6 {[%clk 0:02:59.8]} 2. c4 {[%clk 0:03:02.8]}
2... c5 {[%clk 0:03:01.3]} 3. d5 {[%clk 0:03:03.5]} 3... b5 {[%clk 0:03:02.2]}
4. cxb5 {[%clk 0:03:04.7]} 4... a6 {[%clk 0:03:03.4]} 5. bxa6 {[%clk 0:03:06.2]}
5... g6 {[%clk 0:03:03.9]} 6. Nh3 {[%clk 0:03:01.5]} 6... Bg7 {[%clk 0:03:02.2]}
7. Nc3 {[%clk 0:02:59.8]} 7... Bxa6 {[%clk 0:03:00.2]} 8. g3 {[%clk 0:02:59.7]}
8... O-O {[%clk 0:02:59.5]} 9. Bg2 {[%clk 0:03:00.3]} 9... d6 {[%clk 0:03:00.3]}
10. O-O {[%clk 0:03:01.4]} 10... Nbd7 {[%clk 0:03:01.5]} 11. Nf4 {[%clk
0:03:01.4]} 11... Qa5 {[%clk 0:02:58.8]} 12. Qc2 {[%clk 0:03:01.8]} 12... Rfb8
{[%clk 0:02:58.5]} 13. Bd2 {[%clk 0:02:56.3]} 13... Ne5 {[%clk 0:02:57.4]} 14.
Rfb1 {[%clk 0:02:57.1]} 14... Bc8 {[%clk 0:02:35.2]} 15. Ne4 {[%clk 0:02:48.5]}
15... Qa4 {[%clk 0:02:26.5]} 16. b3 {[%clk 0:02:47.2]} 16... Qa3 {[%clk
0:02:23.4]} 17. Bc3 {[%clk 0:02:45.9]} 17... Bf5 {[%clk 0:02:15.1]} 18. Nxf6+
{[%clk 0:02:46.3]} 18... Bxf6 {[%clk 0:02:13.8]} 19. e4 {[%clk 0:02:40.9]} 19...
Bg4 {[%clk 0:02:11]} 20. Nd3 {[%clk 0:02:33.5]} 20... Nf3+ {[%clk 0:01:59.9]}
21. Bxf3 {[%clk 0:02:34]} 21... Bxf3 {[%clk 0:02:01.4]} 22. Bxf6 {[%clk
0:02:35.2]} 22... exf6 {[%clk 0:02:01.9]} 23. Ne1 {[%clk 0:02:36.7]} 23... Bg4
{[%clk 0:01:58.3]} 24. Qc3 {[%clk 0:02:28.6]} 24... f5 {[%clk 0:01:32.1]} 25. f3
{[%clk 0:02:21.5]} 25... Bh3 {[%clk 0:01:32.6]} 26. e5 {[%clk 0:02:19.2]} 26...
dxe5 {[%clk 0:01:26.8]} 27. Nd3 {[%clk 0:02:19.8]} 27... c4 {[%clk 0:01:02.8]}
28. Nxe5 {[%clk 0:02:09.6]} 28... Qc5+ {[%clk 0:00:54.8]} 29. Kh1 {[%clk
0:02:10.7]} 29... Qf2 {[%clk 0:00:54.8]} 30. Rg1 {[%clk 0:02:12]} 30... cxb3
{[%clk 0:00:30.7]} 31. axb3 {[%clk 0:02:08.4]} 31... Rxa1 {[%clk 0:00:27.9]} 32.
Qxa1 {[%clk 0:02:09.1]} 32... Re8 {[%clk 0:00:26.5]} 33. Qc1 {[%clk 0:01:05.8]}
33... Rxe5 {[%clk 0:00:24.3]} 34. Qc8+ {[%clk 0:01:06.7]} 34... Kg7 {[%clk
0:00:24.6]} 35. Qc3 {[%clk 0:01:08.6]} 35... f6 {[%clk 0:00:22.6]} 36. Qc7+
{[%clk 0:01:09.3]} 36... Kh6 {[%clk 0:00:22.7]} 37. Qc1+ {[%clk 0:01:09.8]}
37... Re3 {[%clk 0:00:22.7]} 0-1

[Event "*** Titled Tuesday Blitz"]
[Site "Chess.com"]
[Date "2020.01.07"]
[Round "8"]
[White "Hadza_3"]
[Black "IMRosen"]
[Result "0-1"]
[WhiteElo "2402"]
[BlackElo "2577"]
[TimeControl "180+2"]
[EndTime "14:53:52 PST"]
[Termination "IMRosen won by resignation"]

1. e4 {[%clk 0:03:01.9]} 1... e5 {[%clk 0:02:48.2]} 2. Nc3 {[%clk 0:03:00.8]}
2... Nf6 {[%clk 0:02:34.2]} 3. Bc4 {[%clk 0:03:00.5]} 3... Nc6 {[%clk
0:02:33.9]} 4. d3 {[%clk 0:03:00.7]} 4... Na5 {[%clk 0:02:32.4]} 5. Bb3 {[%clk
0:03:01.2]} 5... Nxb3 {[%clk 0:02:32.6]} 6. axb3 {[%clk 0:03:03.1]} 6... d6
{[%clk 0:02:34.2]} 7. Nge2 {[%clk 0:02:57.7]} 7... Be7 {[%clk 0:02:35.3]} 8. O-O
{[%clk 0:02:58.3]} 8... O-O {[%clk 0:02:36.4]} 9. Ng3 {[%clk 0:02:54.5]} 9...
Re8 {[%clk 0:02:30.5]} 10. h3 {[%clk 0:02:43.2]} 10... c6 {[%clk 0:02:29.8]} 11.
f4 {[%clk 0:02:37.7]} 11... exf4 {[%clk 0:02:24.2]} 12. Bxf4 {[%clk 0:02:39.6]}
12... Be6 {[%clk 0:02:05.5]} 13. Kh1 {[%clk 0:02:23.9]} 13... Nd7 {[%clk
0:02:05.9]} 14. Qd2 {[%clk 0:02:07.1]} 14... Nf8 {[%clk 0:02:06]} 15. Nf5 {[%clk
0:01:46.9]} 15... Ng6 {[%clk 0:02:01]} 16. Nxe7+ {[%clk 0:01:44.6]} 16... Qxe7
{[%clk 0:02:00.1]} 17. Ne2 {[%clk 0:01:31.2]} 17... d5 {[%clk 0:01:54.7]} 18. e5
{[%clk 0:01:23.2]} 18... c5 {[%clk 0:01:51.8]} 19. Rae1 {[%clk 0:01:11.2]} 19...
b6 {[%clk 0:01:52.6]} 20. c3 {[%clk 0:01:09.1]} 20... d4 {[%clk 0:01:48.2]} 21.
cxd4 {[%clk 0:01:07.5]} 21... Bxb3 {[%clk 0:01:49.3]} 22. dxc5 {[%clk
0:01:05.3]} 22... bxc5 {[%clk 0:01:43.2]} 23. Ng3 {[%clk 0:00:56.2]} 23... Bd5
{[%clk 0:01:41.8]} 24. Bg5 {[%clk 0:00:40.2]} 24... Qd7 {[%clk 0:01:40.3]} 25.
Nf5 {[%clk 0:00:34]} 25... Rab8 {[%clk 0:01:01.3]} 26. Qc3 {[%clk 0:00:24]}
26... Rb3 {[%clk 0:00:56.6]} 27. Qxc5 {[%clk 0:00:23.5]} 27... Rxb2 {[%clk
0:00:54.9]} 28. Rf2 {[%clk 0:00:13.2]} 28... Rc8 {[%clk 0:00:42]} 29. Qe3 {[%clk
0:00:13.2]} 29... Rcc2 {[%clk 0:00:39.5]} 30. Rxc2 {[%clk 0:00:12.4]} 30... Rxc2
{[%clk 0:00:41.4]} 31. Ne7+ {[%clk 0:00:03.8]} 31... Nxe7 {[%clk 0:00:40.2]} 32.
Rg1 {[%clk 0:00:04.3]} 32... Re2 {[%clk 0:00:35.8]} 33. Qf4 {[%clk 0:00:05]} 0-1

[Event "*** Titled Tuesday Blitz"]
[Site "Chess.com"]
[Date "2020.01.07"]
[Round "8"]
[White "AndrewDGreen"]
[Black "PursuitOfHappyness2"]
[Result "1-0"]
[WhiteElo "2203"]
[BlackElo "2231"]
[TimeControl "180+2"]
[EndTime "14:54:02 PST"]
[Termination "AndrewDGreen won by resignation"]

1. d4 {[%clk 0:03:01.9]} 1... c6 {[%clk 0:02:56.7]} 2. Nf3 {[%clk 0:03:01.9]}
2... Nf6 {[%clk 0:02:57.1]} 3. Bf4 {[%clk 0:03:02.1]} 3... g6 {[%clk 0:02:57]}
4. Nc3 {[%clk 0:02:55.2]} 4... d5 {[%clk 0:02:57.5]} 5. e3 {[%clk 0:02:50.8]}
5... Bg7 {[%clk 0:02:57.8]} 6. Be2 {[%clk 0:02:49.8]} 6... O-O {[%clk
0:02:58.3]} 7. h3 {[%clk 0:02:49.9]} 7... c5 {[%clk 0:02:55.5]} 8. O-O {[%clk
0:02:48.2]} 8... Nc6 {[%clk 0:02:49.8]} 9. dxc5 {[%clk 0:02:47.1]} 9... Qa5
{[%clk 0:02:49.7]} 10. Nb5 {[%clk 0:02:46]} 10... e6 {[%clk 0:02:43.7]} 11. Bd6
{[%clk 0:02:37.7]} 11... a6 {[%clk 0:02:39.7]} 12. Nc7 {[%clk 0:02:20.9]} 12...
Ra7 {[%clk 0:02:35.3]} 13. c3 {[%clk 0:02:05.5]} 13... b5 {[%clk 0:02:22.6]} 14.
b4 {[%clk 0:01:43.1]} 14... Qa3 {[%clk 0:01:25.7]} 15. Qc2 {[%clk 0:01:20.8]}
15... Ne4 {[%clk 0:01:21.7]} 16. Rfc1 {[%clk 0:01:15.4]} 16... Nxd6 {[%clk
0:01:12]} 17. cxd6 {[%clk 0:01:17.3]} 17... Rd8 {[%clk 0:01:13]} 18. Bxb5 {[%clk
0:01:12.4]} 18... axb5 {[%clk 0:01:11.9]} 19. Nxb5 {[%clk 0:01:14.3]} 19... Qa6
{[%clk 0:01:12.7]} 20. Nxa7 {[%clk 0:01:14.1]} 20... Nxa7 {[%clk 0:01:14.3]} 21.
a4 {[%clk 0:01:12.8]} 21... Qxd6 {[%clk 0:01:12.1]} 22. b5 {[%clk 0:01:11.4]}
22... Bd7 {[%clk 0:01:06.1]} 23. Rab1 {[%clk 0:01:06.2]} 23... Nc8 {[%clk
0:01:04.3]} 24. c4 {[%clk 0:01:04.2]} 24... dxc4 {[%clk 0:01:02.9]} 25. Qxc4
{[%clk 0:01:05.7]} 25... Nb6 {[%clk 0:01:03.8]} 26. Qh4 {[%clk 0:00:58]} 26...
Rb8 {[%clk 0:00:58]} 27. a5 {[%clk 0:00:57]} 27... Nd5 {[%clk 0:00:57.7]} 28. b6
{[%clk 0:00:53.4]} 28... e5 {[%clk 0:00:57.2]} 29. Qc4 {[%clk 0:00:47.3]} 29...
Be6 {[%clk 0:00:55.3]} 30. Qc6 {[%clk 0:00:46.7]} 30... Qa3 {[%clk 0:00:52.4]}
31. Ra1 {[%clk 0:00:39.4]} 31... Qb2 {[%clk 0:00:48.1]} 32. Rcb1 {[%clk
0:00:37.6]} 32... Qc3 {[%clk 0:00:38.5]} 33. Qd6 {[%clk 0:00:38.5]} 33... Rc8
{[%clk 0:00:29.6]} 34. b7 {[%clk 0:00:38.5]} 34... e4 {[%clk 0:00:26.4]} 35.
bxc8=Q+ {[%clk 0:00:37.6]} 35... Bxc8 {[%clk 0:00:28.3]} 36. Qxd5 {[%clk
0:00:32.6]} 36... exf3 {[%clk 0:00:28.1]} 37. Rc1 {[%clk 0:00:29.7]} 37... Qxa1
{[%clk 0:00:24.9]} 38. Rxa1 {[%clk 0:00:29.9]} 38... Bxa1 {[%clk 0:00:26.8]} 39.
Qd8+ {[%clk 0:00:31]} 39... Kg7 {[%clk 0:00:28.5]} 40. Qxc8 {[%clk 0:00:32.2]}
40... fxg2 {[%clk 0:00:30.4]} 1-0

[Event "*** Titled Tuesday Blitz"]
[Site "Chess.com"]
[Date "2020.01.07"]
[Round "8"]
[White "arminmusovic"]
[Black "norwaytoadog"]
[Result "1-0"]
[WhiteElo "2504"]
[BlackElo "2319"]
[TimeControl "180+2"]
[EndTime "14:54:03 PST"]
[Termination "arminmusovic won on time"]

1. a3 {[%clk 0:03:00.4]} 1... e5 {[%clk 0:02:59.2]} 2. Nc3 {[%clk 0:03:01.3]}
2... Nf6 {[%clk 0:02:58.5]} 3. d4 {[%clk 0:03:02.4]} 3... exd4 {[%clk 0:02:55]}
4. Qxd4 {[%clk 0:03:04.3]} 4... Nc6 {[%clk 0:02:55.6]} 5. Qa4 {[%clk 0:03:05.2]}
5... Bc5 {[%clk 0:02:47.9]} 6. Bg5 {[%clk 0:03:05.3]} 6... h6 {[%clk 0:02:45.6]}
7. Bh4 {[%clk 0:03:06.4]} 7... Be7 {[%clk 0:02:40.2]} 8. O-O-O {[%clk
0:03:05.7]} 8... O-O {[%clk 0:02:39.3]} 9. Nf3 {[%clk 0:02:56.7]} 9... a6 {[%clk
0:02:36.1]} 10. Rg1 {[%clk 0:02:55.4]} 10... b5 {[%clk 0:02:36.2]} 11. Nxb5
{[%clk 0:02:56]} 11... Bb7 {[%clk 0:02:33]} 12. Nc3 {[%clk 0:02:48.7]} 12... a5
{[%clk 0:02:03.5]} 13. g4 {[%clk 0:02:43.8]} 13... Nb4 {[%clk 0:01:56.8]} 14. g5
{[%clk 0:02:28.7]} 14... hxg5 {[%clk 0:01:54.6]} 15. Bxg5 {[%clk 0:02:03.9]}
15... Bc6 {[%clk 0:01:47.2]} 16. Qb3 {[%clk 0:02:02.4]} 16... Ne4 {[%clk
0:01:37.4]} 17. Nxe4 {[%clk 0:01:49.3]} 17... Bxe4 {[%clk 0:01:38]} 18. Bxe7
{[%clk 0:01:43.6]} 18... Qxe7 {[%clk 0:01:37.9]} 19. axb4 {[%clk 0:01:41.9]}
19... axb4 {[%clk 0:01:12.3]} 20. Kd2 {[%clk 0:01:43]} 20... Ra5 {[%clk
0:01:08.7]} 21. Ke1 {[%clk 0:01:39.4]} 21... Re8 {[%clk 0:01:05.3]} 22. Rg4
{[%clk 0:01:23.3]} 22... d5 {[%clk 0:00:54.9]} 23. Ng5 {[%clk 0:01:13.9]} 23...
Bf5 {[%clk 0:00:49.8]} 24. Rg3 {[%clk 0:01:03.6]} 24... Rc5 {[%clk 0:00:41.9]}
25. Re3 {[%clk 0:00:57.2]} 25... Be4 {[%clk 0:00:16.9]} 26. Nxe4 {[%clk
0:00:54.6]} 26... dxe4 {[%clk 0:00:17.7]} 27. Qxb4 {[%clk 0:00:51.4]} 27... Qe5
{[%clk 0:00:16.7]} 28. Qd4 {[%clk 0:00:52.4]} 28... Qf5 {[%clk 0:00:14.3]} 29.
c3 {[%clk 0:00:48.2]} 29... Rc6 {[%clk 0:00:12]} 30. Qd7 {[%clk 0:00:45.4]}
30... Rce6 {[%clk 0:00:11.8]} 31. Bh3 {[%clk 0:00:44.4]} 31... Qg5 {[%clk
0:00:11.3]} 32. Rg3 {[%clk 0:00:45.6]} 32... Qh4 {[%clk 0:00:02.5]} 33. Bxe6
{[%clk 0:00:45.9]} 33... Rxe6 {[%clk 0:00:02.6]} 34. Qd8+ {[%clk 0:00:46.6]}
34... Qxd8 {[%clk 0:00:02.3]} 35. Rxd8+ {[%clk 0:00:48.5]} 35... Kh7 {[%clk
0:00:03.3]} 36. Rd7 {[%clk 0:00:49.7]} 36... Ra6 {[%clk 0:00:02.2]} 37. Kd2
{[%clk 0:00:50.2]} 37... Ra2 {[%clk 0:00:02.3]} 38. Kc2 {[%clk 0:00:51.6]} 1-0

[Event "*** Titled Tuesday Blitz"]
[Site "Chess.com"]
[Date "2020.01.07"]
[Round "8"]
[White "Er_is_geen_hoop_meer"]
[Black "Heineccius"]
[Result "0-1"]
[WhiteElo "2443"]
[BlackElo "2665"]
[TimeControl "180+2"]
[EndTime "14:54:04 PST"]
[Termination "Heineccius won by checkmate"]

1. b4 {[%clk 0:02:57.3]} 1... Nf6 {[%clk 0:02:59.2]} 2. Bb2 {[%clk 0:02:58.5]}
2... d5 {[%clk 0:03:00.3]} 3. e3 {[%clk 0:02:59.3]} 3... Nbd7 {[%clk 0:03:01.1]}
4. Nf3 {[%clk 0:02:59.3]} 4... e6 {[%clk 0:03:01.9]} 5. a3 {[%clk 0:03:00.8]}
5... Bd6 {[%clk 0:03:02.1]} 6. g4 {[%clk 0:03:02.3]} 6... O-O {[%clk 0:03:01.6]}
7. g5 {[%clk 0:03:03.6]} 7... Nh5 {[%clk 0:03:02.1]} 8. h4 {[%clk 0:03:03.3]}
8... b6 {[%clk 0:02:56.1]} 9. Nh2 {[%clk 0:03:04.4]} 9... g6 {[%clk 0:02:56]}
10. Ng4 {[%clk 0:03:05.8]} 10... e5 {[%clk 0:02:51.7]} 11. f4 {[%clk 0:03:06.9]}
11... f6 {[%clk 0:02:51.1]} 12. Bg2 {[%clk 0:03:07.2]} 12... Bb7 {[%clk
0:02:45.3]} 13. O-O {[%clk 0:03:07]} 13... Qe7 {[%clk 0:02:37.7]} 14. Nc3 {[%clk
0:03:06.3]} 14... c6 {[%clk 0:02:32.7]} 15. b5 {[%clk 0:03:07.2]} 15... e4
{[%clk 0:02:28.7]} 16. bxc6 {[%clk 0:03:05.9]} 16... Bxc6 {[%clk 0:02:30.5]} 17.
f5 {[%clk 0:03:06.5]} 17... Ng3 {[%clk 0:02:18.8]} 18. Rf2 {[%clk 0:02:31.8]}
18... Nxf5 {[%clk 0:02:10.7]} 19. Qf1 {[%clk 0:02:27.5]} 19... Be5 {[%clk
0:02:06.9]} 20. gxf6 {[%clk 0:02:20.8]} 20... Bxf6 {[%clk 0:02:03]} 21. Nxe4
{[%clk 0:02:13.5]} 21... Bxb2 {[%clk 0:01:56.3]} 22. Rb1 {[%clk 0:02:14.1]}
22... dxe4 {[%clk 0:01:48.7]} 23. Rxb2 {[%clk 0:02:14.2]} 23... Qxh4 {[%clk
0:01:40.8]} 24. Qc4+ {[%clk 0:02:11.3]} 24... Kh8 {[%clk 0:01:19.9]} 25. Qxc6
{[%clk 0:02:12.4]} 25... Nc5 {[%clk 0:01:04.2]} 26. Rf4 {[%clk 0:01:55.4]} 26...
Qe1+ {[%clk 0:00:55.5]} 27. Rf1 {[%clk 0:01:55.7]} 27... Qxd2 {[%clk 0:00:51.5]}
28. Qc7 {[%clk 0:01:25.7]} 28... Qc3 {[%clk 0:00:28.9]} 29. Rb3 {[%clk
0:01:23.5]} 29... Qg7 {[%clk 0:00:30.3]} 30. Qxg7+ {[%clk 0:01:22.8]} 30... Kxg7
{[%clk 0:00:32.2]} 31. Rb4 {[%clk 0:01:22.4]} 31... h5 {[%clk 0:00:32.2]} 32.
Ne5 {[%clk 0:01:23]} 32... Nxe3 {[%clk 0:00:33.1]} 33. Rxf8 {[%clk 0:01:23]}
33... Rxf8 {[%clk 0:00:35]} 34. Bxe4 {[%clk 0:01:24.6]} 34... a5 {[%clk
0:00:34]} 35. Rd4 {[%clk 0:01:24.6]} 35... Re8 {[%clk 0:00:32.8]} 36. Rd6 {[%clk
0:00:52.9]} 36... Nxe4 {[%clk 0:00:31.1]} 37. Rxg6+ {[%clk 0:00:53.4]} 37... Kh7
{[%clk 0:00:32.2]} 38. Rxb6 {[%clk 0:00:53.9]} 38... Rxe5 {[%clk 0:00:32.6]} 39.
c4 {[%clk 0:00:55.3]} 39... Nxc4 {[%clk 0:00:32.1]} 40. Ra6 {[%clk 0:00:55.6]}
40... Ne3 {[%clk 0:00:32.4]} 41. Kh2 {[%clk 0:00:56.7]} 41... Rg5 {[%clk
0:00:32.6]} 42. a4 {[%clk 0:00:58.1]} 42... Rg2+ {[%clk 0:00:33.1]} 43. Kh3
{[%clk 0:00:59.3]} 43... Rg3+ {[%clk 0:00:28.2]} 44. Kh4 {[%clk 0:00:56.7]}
44... Nf5+ {[%clk 0:00:28.6]} 45. Kxh5 {[%clk 0:00:58.2]} 45... Rg5# {[%clk
0:00:30]} 0-1